bitfinex/quotes_SOLUSD_20250831
["timestamp","ask_amount","ask_price","bid_price","bid_amount"]
[1756617972541,47.70269982,204.42,204.41,0.03]
[1756617972937,47.03269982,204.42,204.41,0.03]
[1756617973318,52.53468873,204.42,204.41,0.03]
[1756617973642,47.03269982,204.42,204.41,0.03]
[1756617973945,52.49468873,204.42,204.41,0.03]
[1756617974142,14.83468873,204.42,204.41,0.03]
[1756617974445,52.49468873,204.42,204.41,0.03]
[1756617975318,53.16468873,204.42,204.41,0.03]
[1756617978113,66.76028274,204.42,204.41,0.03]
[1756617978421,66.76028274,204.42,204.38,0.03]
[1756617978422,26.0,204.39,204.38,0.03]
[1756617978617,66.13940158,204.39,204.38,0.03]
[1756617979019,76.0570079,204.39,204.38,0.03]
[1756617979439,85.84455417,204.39,204.38,0.03]
[1756617979950,71.03434058,204.39,204.38,0.69]
[1756617980432,75.92694785,204.39,204.38,0.69]
[1756617981033,38.26694785,204.39,204.38,0.03]
[1756617981349,75.92694785,204.39,204.38,0.03]
[1756617982046,85.84455417,204.39,204.38,0.03]
[1756617982726,73.44754627,204.39,204.38,0.03]
[1756617982928,75.92694785,204.39,204.38,0.03]
[1756617984950,30.894939,204.39,204.38,0.03]
[1756617985161,77.5623201,204.39,204.38,0.69]
[1756617985449,4.11477383,204.41,204.38,0.69]
[1756617985648,2.47940158,204.41,204.38,0.69]
[1756617985848,37.8,204.4,204.38,0.69]
[1756617986024,2.47940158,204.41,204.38,0.69]
[1756617986228,40.27940158,204.4,204.38,0.69]
[1756617986450,37.8,204.4,204.38,0.69]
[1756617986629,2.47940158,204.39,204.38,0.69]
[1756617987742,40.27940158,204.39,204.38,0.69]
[1756617988345,2.47940158,204.39,204.38,0.69]
[1756617988544,40.27940158,204.39,204.38,0.69]
[1756617991461,40.25940158,204.39,204.38,0.69]
[1756617991963,37.78,204.39,204.38,0.69]
[1756617992140,40.27940158,204.39,204.38,0.69]
[1756617993939,2.47940158,204.39,204.38,0.69]
[1756617994239,40.25940158,204.39,204.38,0.69]
[1756617995145,37.78,204.39,204.38,0.69]
[1756617995337,40.25940158,204.39,204.38,0.69]
[1756617995536,2.47940158,204.39,204.38,0.69]
[1756617995738,40.25940158,204.39,204.38,0.69]
[1756617995936,2.47940158,204.39,204.38,0.69]
[1756617996152,40.25940158,204.39,204.38,0.69]
[1756617996867,2.47940158,204.39,204.38,0.69]
[1756617997357,40.25940158,204.39,204.38,0.69]
[1756617997555,40.25940158,204.39,204.38,0.03]
[1756617997556,45.15200885,204.39,204.38,0.03]
[1756617997760,45.84200885,204.39,204.38,0.03]
[1756617997941,54.8546562,204.39,204.38,0.03]
[1756617998138,50.73580185,204.39,204.38,0.03]
[1756617998346,50.71580185,204.39,204.38,0.03]
[1756617999561,54.14425793,204.39,204.38,0.03]
[1756618001368,51.66485635,204.39,204.38,0.03]
[1756618001545,54.14425793,204.39,204.38,0.03]
[1756618002165,50.02580185,204.39,204.38,0.03]
[1756618002362,42.653793,204.39,204.38,0.03]
[1756618002566,49.25510774,204.39,204.38,0.74]
[1756618002961,54.14771501,204.39,204.38,0.03]
[1756618003157,51.66831343,204.39,204.38,0.03]
[1756618003359,54.14771501,204.39,204.38,0.74]
[1756618003871,9.01570616,204.39,204.38,0.74]
[1756618004077,49.23510774,204.39,204.38,0.74]
[1756618004472,11.49510774,204.39,204.38,0.74]
[1756618004677,44.34131474,204.39,204.38,0.74]
[1756618004873,4.12191316,204.39,204.38,0.74]
[1756618005176,44.34131474,204.39,204.38,0.74]
[1756618005864,6.60131474,204.39,204.38,0.74]
[1756618006070,44.34131474,204.39,204.38,0.74]
[1756618007180,4.12191316,204.39,204.38,0.74]
[1756618007368,44.34131474,204.39,204.38,0.74]
[1756618008079,40.21940158,204.39,204.38,0.74]
[1756618008474,2.47940158,204.39,204.38,0.74]
[1756618008678,40.21940158,204.39,204.38,0.74]
[1756618008853,37.74,204.39,204.38,0.74]
[1756618009182,40.21940158,204.39,204.38,0.74]
[1756618011078,37.74,204.39,204.38,0.74]
[1756618011254,35.01535516,204.4,204.38,0.74]
[1756618011454,40.23940158,204.39,204.38,0.74]
[1756618012462,2.47940158,204.39,204.38,0.03]
[1756618012654,4.12191316,204.4,204.38,3.15955683]
[1756618012860,2.47940158,204.41,204.39,3.12955683]
[1756618013075,37.76,204.4,204.38,0.03]
[1756618013382,37.74,204.39,204.38,0.03]
[1756618013587,2.47940158,204.41,204.39,0.71]
[1756618013769,2.47940158,204.41,204.4,8.02106896]
[1756618013967,40.27940158,204.41,204.4,8.73106896]
[1756618014172,40.27940158,204.41,204.4,3.83870106]
[1756618014569,0.06,204.41,204.4,3.83870106]
[1756618014761,0.06,204.41,204.4,6.31810264]
[1756618015165,0.06,204.41,204.4,3.83870106]
[1756618015779,0.06,204.41,204.4,8.73106896]
[1756618017483,0.06,204.41,204.4,12.61408522]
[1756618017862,0.06,204.42,204.41,13.59559401]
[1756618018186,0.06,204.42,204.41,21.31731133]
[1756618019767,0.06,204.42,204.41,26.20943989]
[1756618020082,0.06,204.42,204.41,3.83870106]
[1756618020977,0.06,204.42,204.41,8.73082962]
[1756618022061,0.06,204.42,204.41,5.60212856]
[1756618022279,0.06,204.42,204.41,8.95796156]
[1756618023383,0.06,204.42,204.41,4.065833]
[1756618023561,4.64301626,204.42,204.41,3.355833]
[1756618024593,0.76,204.42,204.41,3.355833]
[1756618024793,4.64301626,204.42,204.41,3.355833]
[1756618025091,41.72301626,204.42,204.41,3.355833]
[1756618025771,37.84,204.42,204.41,4.015833]
[1756618025966,0.06,204.42,204.41,8.90796156]
[1756618027487,0.06,204.42,204.41,22.50355557]
[1756618027789,0.06,204.42,204.41,26.38657183]
[1756618028885,0.06,204.42,204.41,22.50355557]
[1756618030276,0.06,204.42,204.41,26.38657183]
[1756618033085,0.06,204.42,204.41,26.27657282]
[1756618033287,0.06,204.42,204.41,22.39355656]
[1756618033498,0.06,204.42,204.41,22.42355656]
[1756618033890,4.64301626,204.42,204.41,3.27583399]
[1756618034190,68.38301626,204.42,204.41,0.03]
[1756618034498,73.2749055,204.42,204.41,0.03]
[1756618034992,0.06,204.42,204.41,0.03]
[1756618035183,37.78,204.42,204.41,3.27601391]
[1756618037200,42.36301626,204.42,204.41,3.27601391]
[1756618037706,47.2549055,204.42,204.41,0.03]
[1756618037998,38.48,204.42,204.41,0.03]
[1756618038198,42.36301626,204.42,204.41,0.03]
[1756618039100,41.66301626,204.42,204.41,0.03]
[1756618039876,37.78,204.42,204.41,0.03]
[1756618040398,41.66301626,204.42,204.41,0.03]
[1756618041098,42.36301626,204.42,204.41,0.03]
[1756618044197,37.78,204.42,204.41,0.03]
[1756618044390,41.66301626,204.42,204.41,0.03]
[1756618047579,67.66301626,204.42,204.41,0.03]
[1756618048613,37.78,204.42,204.41,0.03]
[1756618049003,41.66301626,204.42,204.41,0.03]
[1756618049407,41.66301626,204.42,204.41,0.69]
[1756618049611,47.2549055,204.42,204.41,0.03]
[1756618051509,46.5549055,204.42,204.41,0.03]
[1756618052517,47.2449055,204.42,204.41,0.03]
[1756618052887,9.5249055,204.42,204.41,0.03]
[1756618053090,46.5749055,204.42,204.41,0.03]
[1756618053294,47.2649055,204.42,204.41,0.03]
[1756618053814,9.5249055,204.42,204.41,0.03]
[1756618054018,47.2649055,204.42,204.41,0.03]
[1756618054314,51.38681866,204.42,204.41,0.03]
[1756618054701,50.69681866,204.42,204.41,0.03]
[1756618055784,45.78492942,204.42,204.41,0.03]
[1756618055991,8.06492942,204.42,204.41,0.03]
[1756618056192,45.78492942,204.42,204.41,0.03]
[1756618056821,50.67681866,204.42,204.41,0.03]
[1756618057000,47.2449055,204.42,204.41,0.03]
[1756618057203,9.5249055,204.42,204.41,0.03]
[1756618057518,47.2449055,204.42,204.41,0.03]
[1756618058117,49.2066025,204.42,204.41,0.03]
[1756618060015,47.2449055,204.42,204.41,0.03]
[1756618060406,46.5549055,204.42,204.41,0.03]
[1756618061699,47.2449055,204.42,204.41,0.03]
[1756618061897,46.5549055,204.42,204.41,0.03]
[1756618062408,47.2449055,204.42,204.41,0.03]
[1756618062604,46.5549055,204.42,204.41,0.03]
[1756618064320,41.66301626,204.42,204.41,0.03]
[1756618064617,67.66301626,204.42,204.41,0.71]
[1756618065523,72.5549055,204.42,204.41,0.03]
[1756618067326,0.06,204.42,204.41,0.71]
[1756618067527,37.8,204.42,204.41,3.90916548]
[1756618067828,41.68301626,204.42,204.41,0.71]
[1756618068725,37.8,204.42,204.41,0.71]
[1756618070024,41.68301626,204.42,204.41,0.71]
[1756618070224,37.8,204.42,204.41,0.71]
[1756618070413,37.8,204.42,204.41,5.60212856]
[1756618070723,37.8,204.42,204.41,0.71]
[1756618072009,41.68301626,204.42,204.41,0.71]
[1756618072210,41.68301626,204.42,204.41,0.03]
[1756618072420,41.68301626,204.42,204.41,0.71]
[1756618073118,41.68301626,204.42,204.41,0.03]
[1756618073328,37.8,204.42,204.41,0.03]
[1756618073521,41.68301626,204.42,204.41,0.03]
[1756618073922,46.5749055,204.42,204.41,0.03]
[1756618074633,41.68301626,204.42,204.41,0.03]
[1756618077332,50.69546931,204.42,204.41,0.03]
[1756618081122,47.2649055,204.42,204.41,0.03]
[1756618081327,43.38188924,204.42,204.41,0.03]
[1756618081632,47.2649055,204.42,204.41,0.03]
[1756618082022,52.75502736,204.42,204.41,0.03]
[1756618082333,49.2265075,204.42,204.41,0.03]
[1756618082636,57.43371026,204.42,204.41,0.03]
[1756618082814,19.69371026,204.42,204.41,0.03]
[1756618083138,57.39371026,204.42,204.41,0.03]
[1756618083334,19.69371026,204.42,204.41,0.03]
[1756618083643,49.1865075,204.42,204.41,0.03]
[1756618089325,47.79093618,204.42,204.41,0.03]
[1756618095427,47.77093618,204.42,204.41,0.03]
[1756618096746,47.08093618,204.42,204.41,0.03]
[1756618098130,52.57670893,204.42,204.41,0.03]
[1756618098650,47.08093618,204.42,204.41,0.03]
[1756618099042,26.0,204.39,204.38,0.03]
[1756618099223,66.16744494,204.39,204.38,0.03]
[1756618099425,63.68,204.39,204.38,0.72]
[1756618099641,66.16744494,204.39,204.38,0.72]
[1756618100766,71.06005221,204.39,204.38,0.03]
[1756618101140,33.38005221,204.39,204.38,0.03]
[1756618101356,71.06005221,204.39,204.38,0.03]
[1756618101741,71.06005221,204.39,204.38,0.72]
[1756618105650,71.06005221,204.39,204.38,0.03]
[1756618106557,70.53440127,204.39,204.38,0.03]
[1756618106769,73.02184621,204.39,204.38,0.03]
[1756618111078,73.02184621,204.39,204.38,0.72]
[1756618112773,73.02184621,204.39,204.38,0.03]
[1756618113783,73.02184621,204.39,204.38,0.72]
[1756618113984,73.72184621,204.39,204.38,0.03]
[1756618114481,73.02184621,204.39,204.38,0.03]
[1756618115977,35.34184621,204.39,204.38,0.03]
[1756618116155,73.02184621,204.39,204.38,0.03]
[1756618117086,73.72184621,204.39,204.38,0.03]
[1756618117587,73.02184621,204.39,204.38,0.03]
[1756618119082,78.51781614,204.39,204.38,0.03]
[1756618123007,73.72184621,204.39,204.38,0.03]
[1756618123303,83.67162597,204.39,204.38,0.03]
[1756618123463,82.97162597,204.39,204.38,0.03]
[1756618123669,70.53440127,204.39,204.38,0.03]
[1756618123895,73.02184621,204.39,204.38,0.03]
[1756618126807,70.53440127,204.39,204.38,0.03]
[1756618127022,73.02184621,204.39,204.38,0.03]
[1756618129994,35.34184621,204.39,204.38,0.03]
[1756618130197,73.10184621,204.39,204.38,0.03]
[1756618132982,83.75162597,204.39,204.38,0.03]
[1756618133781,13.59559401,204.38,204.36,0.03]
[1756618133995,53.82303895,204.37,204.36,0.03]
[1756618134192,54.52303895,204.37,204.36,0.03]
[1756618134400,64.74991522,204.37,204.35,0.03]
[1756618134583,3.18744494,204.36,204.35,0.03]
[1756618135518,42.88971994,204.36,204.35,0.03]
[1756618136094,47.78304544,204.36,204.35,0.03]
[1756618138998,10.04304544,204.36,204.35,0.03]
[1756618139196,47.76304544,204.36,204.35,0.03]
[1756618139625,47.06304544,204.36,204.35,0.03]
[1756618141017,60.65863945,204.36,204.35,0.03]
[1756618142713,61.30863945,204.36,204.35,0.03]
[1756618143319,60.65863945,204.36,204.35,0.03]
[1756618145826,22.93863945,204.36,204.35,0.03]
[1756618146032,61.28863945,204.36,204.35,0.03]
[1756618146628,60.63863945,204.36,204.35,0.03]
[1756618148430,61.28863945,204.36,204.35,0.03]
[1756618148641,60.63863945,204.36,204.35,0.03]
[1756618153337,26.0,204.34,204.33,0.68]
[1756618153633,71.68681239,204.34,204.33,0.68]
[1756618154034,73.64918439,204.34,204.33,0.68]
[1756618154446,40.84298883,204.34,204.33,0.68]
[1756618154748,73.04362138,204.34,204.27,4.89548147]
[1756618154940,77.16774072,204.34,204.26,0.18952694]
[1756618155240,2.48744494,204.3,204.25,13.59559401]
[1756618155424,36.98029578,204.34,204.25,13.59559401]
[1756618155425,40.18744494,204.29,204.25,13.59559401]
[1756618155811,37.7,204.29,204.25,13.59559401]
[1756618156635,37.7,204.29,204.26,4.89572113]
[1756618156830,37.7,204.29,204.27,0.65]
[1756618157031,2.48744494,204.3,204.27,0.65]
[1756618157339,37.7,204.29,204.27,0.65]
[1756618158546,37.7,204.29,204.27,5.54543011]
[1756618158835,37.7,204.29,204.28,0.65]
[1756618160040,40.18744494,204.29,204.28,0.65]
[1756618160936,37.7,204.29,204.28,0.65]
[1756618162020,40.18744494,204.29,204.28,0.65]
[1756618162240,37.7,204.29,204.28,0.65]
[1756618162745,51.295594,204.29,204.28,0.65]
[1756618163644,13.595594,204.29,204.28,0.65]
[1756618163833,51.295594,204.29,204.28,0.65]
[1756618164038,37.7,204.29,204.28,0.65]
[1756618164235,45.08317594,204.29,204.28,0.65]
[1756618165030,42.595731,204.29,204.28,0.65]
[1756618166453,4.895731,204.29,204.28,0.65]
[1756618166650,37.7,204.29,204.28,5.54524182]
[1756618166954,37.7,204.29,204.28,0.65]
[1756618167731,4.895412,204.3,204.28,0.65]
[1756618167928,37.7,204.29,204.28,0.65]
[1756618168555,37.7,204.29,204.28,5.54524182]
[1756618169744,4.895412,204.31,204.28,5.54524182]
[1756618169944,37.7,204.32,204.29,0.65]
[1756618170638,40.18744494,204.32,204.29,0.65]
[1756618170934,37.7,204.32,204.29,0.65]
[1756618171136,40.18744494,204.32,204.29,0.65]
[1756618171444,40.18744494,204.32,204.29,5.54488961]
[1756618171651,40.18744494,204.32,204.3,0.7]
[1756618174058,40.24744494,204.32,204.3,0.7]
[1756618175246,40.24744494,204.32,204.31,0.7]
[1756618177134,37.76,204.32,204.31,5.59452302]
[1756618178141,0.06,204.32,204.31,8.08196796]
[1756618178342,0.06,204.32,204.31,21.67756197]
[1756618178546,0.06,204.32,204.31,25.80168097]
[1756618180438,0.06,204.32,204.31,23.31423603]
[1756618180672,0.06,204.32,204.31,19.19011703]
[1756618181438,0.06,204.32,204.31,21.67756197]
[1756618183251,0.06,204.32,204.31,19.19011703]
[1756618183457,0.06,204.32,204.31,21.67756197]
[1756618184571,0.06,204.32,204.31,19.19011703]
[1756618184742,0.06,204.32,204.31,21.67756197]
[1756618187752,0.06,204.32,204.31,20.30581402]
[1756618188082,3.20744494,204.32,204.31,14.711291]
[1756618188546,3.20744494,204.32,204.27,0.7]
[1756618188870,40.16744494,204.31,204.27,0.7]
[1756618189168,40.16744494,204.31,204.28,0.7]
[1756618189938,37.68,204.31,204.28,0.7]
[1756618190141,37.68,204.31,204.29,0.7]
[1756618192361,37.68,204.31,204.27,18.4910167]
[1756618192672,0.66,204.3,204.27,3.18744494]
[1756618193045,38.34,204.31,204.27,3.18744494]
[1756618193349,38.34,204.31,204.27,0.7]
[1756618194575,2.48744494,204.3,204.26,0.03]
[1756618194741,2.48744494,204.29,204.26,0.03]
[1756618194938,37.68,204.28,204.26,0.03]
[1756618196155,37.68,204.28,204.27,0.7]
[1756618196351,37.68,204.28,204.26,0.03]
[1756618196663,37.68,204.28,204.26,0.73]
[1756618197342,37.68,204.28,204.26,0.03]
[1756618200248,38.34,204.28,204.26,0.03]
[1756618200742,0.66,204.31,204.27,0.7]
[1756618200973,37.68,204.31,204.27,33.38291062]
[1756618201159,40.16744494,204.31,204.27,31.59546568]
[1756618201361,40.82744494,204.31,204.27,31.59546568]
[1756618201557,2.48744494,204.28,204.26,0.03]
[1756618201761,37.68,204.28,204.27,26.0]
[1756618201961,40.87744494,204.28,204.27,26.0]
[1756618202369,38.39,204.28,204.27,26.0]
[1756618202571,40.87744494,204.28,204.26,0.03]
[1756618202959,0.71,204.28,204.26,0.03]
[1756618203159,37.68,204.3,204.27,26.66]
[1756618204343,3.19744494,204.31,204.28,4.89524182]
[1756618204344,38.39,204.31,204.28,4.89524182]
[1756618204550,38.39,204.31,204.28,5.55524182]
[1756618204949,38.39,204.31,204.28,0.66]
[1756618205146,3.19744494,204.31,204.27,4.89545636]
[1756618205373,40.87744494,204.31,204.27,4.89545636]
[1756618205581,3.19744494,204.31,204.28,0.66]
[1756618205780,37.68,204.31,204.28,3.14744494]
[1756618206281,0.77,204.32,204.29,0.66]
[1756618206282,0.06,204.32,204.29,0.66]
[1756618206460,38.45,204.32,204.29,5.55496465]
[1756618206950,38.45,204.32,204.28,18.490764]
[1756618207278,38.45,204.32,204.28,19.150764]
[1756618209883,38.45,204.32,204.28,14.25559401]
[1756618210091,0.71,204.31,204.28,14.25559401]
[1756618210771,0.71,204.3,204.26,3.17744494]
[1756618212461,0.71,204.3,204.26,8.07313549]
[1756618212660,0.71,204.3,204.26,7.41313549]
[1756618212859,0.71,204.3,204.27,0.66]
[1756618213064,2.48744494,204.3,204.26,4.92569055]
[1756618213279,0.71,204.3,204.26,5.58569055]
[1756618213578,0.71,204.3,204.26,8.07313549]
[1756618213774,37.68,204.31,204.27,0.66]
[1756618213955,2.54744494,204.32,204.27,0.66]
[1756618214156,37.74,204.32,204.28,13.59559401]
[1756618214374,38.45,204.32,204.29,0.66]
[1756618214573,0.06,204.32,204.29,0.66]
[1756618214771,0.06,204.32,204.29,4.8950022]
[1756618214964,0.06,204.32,204.3,0.66]
[1756618216583,0.06,204.32,204.31,14.25559401]
[1756618219978,3.25744494,204.32,204.27,13.59559401]
[1756618220184,2.54744494,204.32,204.27,13.59559401]
[1756618220390,0.71,204.31,204.27,13.59559401]
[1756618220570,0.71,204.31,204.27,14.25559401]
[1756618221192,0.71,204.31,204.27,19.15098018]
[1756618222082,0.71,204.31,204.28,5.55513826]
[1756618222388,2.54744494,204.32,204.29,13.59559401]
[1756618222591,0.06,204.32,204.29,13.59559401]
[1756618222967,0.06,204.32,204.3,0.66]
[1756618224990,0.06,204.32,204.31,0.66]
[1756618226491,0.06,204.32,204.31,5.55452302]
[1756618228073,0.06,204.32,204.31,19.15011703]
[1756618230501,0.06,204.32,204.31,21.63756197]
[1756618231784,0.06,204.32,204.31,19.15011703]
[1756618232300,0.06,204.32,204.3,13.59559401]
[1756618232784,0.06,204.32,204.3,14.28559401]
[1756618233387,0.72,204.32,204.3,13.59559401]
[1756618233701,0.72,204.32,204.29,18.49035661]
[1756618233899,0.72,204.32,204.3,13.59559401]
[1756618234085,0.06,204.32,204.3,13.59559401]
[1756618234286,0.72,204.32,204.3,13.59559401]
[1756618234774,0.06,204.32,204.3,13.59559401]
[1756618235194,0.06,204.32,204.3,18.49029023]
[1756618237001,0.72,204.32,204.29,4.89495455]
[1756618237180,3.14744494,204.31,204.27,14.28559401]
[1756618237386,0.66,204.3,204.26,0.03]
[1756618237695,3.14744494,204.3,204.26,13.62559401]
[1756618237894,0.66,204.29,204.26,13.62559401]
[1756618238392,0.66,204.29,204.26,19.21127239]
[1756618238593,0.66,204.29,204.26,21.69871733]
[1756618238810,4.12222722,204.31,204.27,3.17744494]
[1756618238986,4.12222722,204.31,204.28,0.69]
[1756618239188,4.78222722,204.31,204.28,0.69]
[1756618240212,4.12222722,204.31,204.29,0.69]
[1756618240714,41.84222722,204.32,204.29,0.69]
[1756618240904,42.50222722,204.32,204.29,0.69]
[1756618241506,0.06,204.32,204.3,16.77303895]
[1756618241708,0.06,204.32,204.31,0.69]
[1756618242507,0.06,204.32,204.3,13.59559401]
[1756618242809,0.66,204.31,204.29,13.59559401]
[1756618243510,0.72,204.32,204.29,18.49058944]
[1756618243907,26.0,204.28,204.26,0.03]
[1756618244117,0.66,204.27,204.26,0.03]
[1756618244614,2.622372,204.27,204.26,0.03]
[1756618245894,5.10981694,204.27,204.26,0.03]
[1756618247399,6.51205999,204.27,204.26,0.03]
[1756618249497,1.962372,204.27,204.26,0.03]
[1756618249718,4.89482504,204.3,204.26,0.72]
[1756618249719,38.32,204.3,204.26,0.72]
[1756618249916,38.32,204.3,204.26,0.03]
[1756618250222,38.32,204.3,204.27,0.69]
[1756618250397,38.32,204.3,204.26,0.03]
[1756618250714,38.32,204.3,204.26,0.72]
[1756618251310,37.66,204.3,204.27,0.69]
[1756618251503,38.32,204.3,204.26,4.92559348]
[1756618251817,38.32,204.3,204.27,0.69]
[1756618253014,38.34,204.3,204.27,0.69]
[1756618255009,38.34,204.3,204.26,4.92559348]
[1756618255210,42.22968799,204.3,204.26,5.61559348]
[1756618256396,0.66,204.29,204.26,5.61559348]
[1756618257321,37.68,204.3,204.27,5.58532337]
[1756618257626,42.22968799,204.3,204.27,5.58532337]
[1756618258117,3.88968799,204.31,204.27,5.58532337]
[1756618258422,37.66,204.3,204.27,5.58532337]
[1756618258797,38.32,204.3,204.27,5.58532337]
[1756618259697,38.32,204.3,204.27,0.69]
[1756618261217,3.88968799,204.29,204.28,4.89524182]
[1756618263937,38.32,204.3,204.28,4.89524182]
[1756618264103,3.88968799,204.29,204.28,4.89524182]
[1756618264798,3.88968799,204.29,204.27,4.89548147]
[1756618264998,3.88968799,204.28,204.27,19.17107548]
[1756618266433,3.88968799,204.28,204.27,18.49107548]
[1756618266926,3.88968799,204.28,204.27,19.17107548]
[1756618267427,3.88968799,204.28,204.27,18.49107548]
[1756618269404,2.48887522,204.28,204.27,18.49107548]
[1756618269636,2.48887522,204.28,204.27,13.59559401]
[1756618269936,3.18887522,204.28,204.26,0.03]
[1756618270101,2.48887522,204.27,204.26,0.03]
[1756618270306,2.48887522,204.28,204.26,0.03]
[1756618270507,0.7,204.29,204.26,5.60568364]
[1756618270809,3.18887522,204.29,204.26,5.60568364]
[1756618271735,2.48887522,204.29,204.26,4.92568364]
[1756618271938,2.48887522,204.29,204.27,0.68]
[1756618272424,0.06,204.3,204.28,13.59559401]
[1756618272601,0.06,204.3,204.29,14.27559401]
[1756618273220,0.06,204.3,204.29,13.59559401]
[1756618273425,0.06,204.3,204.29,18.49059621]
[1756618274410,0.06,204.3,204.29,19.17059621]
[1756618275516,0.06,204.3,204.29,21.65947143]
[1756618276012,0.06,204.3,204.29,19.17059621]
[1756618276415,0.06,204.3,204.29,21.65947143]
[1756618276620,0.06,204.3,204.29,19.17059621]
[1756618277132,0.06,204.3,204.29,21.65947143]
[1756618281040,0.06,204.32,204.3,13.59559401]
[1756618281224,0.06,204.32,204.31,16.08446923]
[1756618281430,0.06,204.32,204.31,16.76446923]
[1756618283043,0.06,204.32,204.31,21.65899225]
[1756618287850,0.06,204.35,204.32,13.59559401]
[1756618288162,0.06,204.35,204.34,2.48887522]
[1756618288659,0.06,204.35,204.34,3.16887522]
[1756618288820,1e-08,204.36,204.35,13.59559401]
[1756618289136,1e-08,204.36,204.35,42.76446923]
[1756618290227,1e-08,204.36,204.35,47.65803419]
[1756618294355,1e-08,204.36,204.35,85.29803419]
[1756618294730,1e-08,204.37,204.36,13.59559401]
[1756618295056,1e-08,204.39,204.38,39.59559401]
[1756618295229,1e-08,204.39,204.38,79.72446923]
[1756618295434,1e-08,204.39,204.38,80.39446923]
[1756618297360,1e-08,204.39,204.38,86.68016949]
[1756618298457,1e-08,204.39,204.38,88.64032849]
[1756618300669,1e-08,204.41,204.4,43.47732284]
[1756618300846,1e-08,204.41,204.4,81.23732284]
[1756618301251,1e-08,204.41,204.4,81.90732284]
[1756618303635,1e-08,204.41,204.4,86.79969074]
[1756618305741,1e-08,204.41,204.4,49.03969074]
[1756618306061,1e-08,204.41,204.4,86.75969074]
[1756618306835,1e-08,204.41,204.4,49.03969074]
[1756618307041,1e-08,204.41,204.4,86.75969074]
[1756618307248,1e-08,204.41,204.4,86.08969074]
[1756618307442,1e-08,204.41,204.4,48.36969074]
[1756618307653,0.70000001,204.41,204.4,18.48796191]
[1756618307838,4.58172884,204.41,204.4,18.48796191]
[1756618308167,0.70000001,204.41,204.4,18.48796191]
[1756618308850,0.70000001,204.41,204.4,22.36969074]
[1756618309231,1e-08,204.41,204.4,22.36969074]
[1756618309442,1e-08,204.41,204.4,23.03969074]
[1756618312444,0.06,204.42,204.4,23.03969074]
[1756618312644,0.06,204.44,204.43,17.47732284]
[1756618312865,0.76,204.44,204.43,55.17732284]
[1756618313182,0.76,204.44,204.43,55.84732284]
[1756618313183,0.06,204.44,204.43,55.84732284]
[1756618314233,0.06,204.45,204.44,13.59559401]
[1756618314432,0.06,204.45,204.44,17.47732284]
[1756618314664,0.06,204.45,204.44,22.36873352]
[1756618317436,0.06,204.45,204.44,23.03873352]
[1756618317859,0.06,204.45,204.44,22.36873352]
[1756618318060,0.06,204.45,204.44,23.03873352]
[1756618318952,1e-08,204.46,204.44,23.03873352]
[1756618319270,1e-08,204.46,204.45,55.80732284]
[1756618319561,0.06,204.48,204.46,13.59559401]
[1756618319749,0.06,204.48,204.47,51.25559401]
[1756618320359,0.06,204.48,204.47,56.14628702]
[1756618321352,0.06,204.48,204.47,60.02801585]
[1756618322261,0.76,204.48,204.47,22.36801585]
[1756618322461,0.76,204.48,204.47,56.20628702]
[1756618323070,0.06,204.48,204.47,60.08801585]
[1756618323275,0.06,204.48,204.47,60.74801585]